[Event "Mistrovství Čech mládeže 2023 - HD16"]
[Site "Harrachov, Czech Republic"]
[Date "2023.10.25"]
[Round "6.13"]
[White "Mikhno, Artem"]
[Black "Bárta, David"]
[Result "1-0"]
[TimeControl "90m + 30s"]
[WhiteElo "1781"]
[BlackElo "1558"]

1. d4 {[%clk 01:30:59]} {[%emt 00:54:35]} d5 {[%clk 01:30:53]} {[%emt
00:00:07]} 2. c4 {[%clk 01:31:20]} {[%emt 00:00:09]} e6 {[%clk 01:31:16]}
{[%emt 00:00:07]} 3. Nc3 {[%clk 01:31:27]} {[%emt 00:00:23]} Be7 {[%clk
01:31:26]} {[%emt 00:00:19]} 4. Nf3 {[%clk 01:31:11]} {[%emt 00:00:47]} Nf6
{[%clk 01:31:38]} {[%emt 00:00:17]} 5. Bg5 {[%clk 01:30:47]} {[%emt 00:00:54]}
O-O {[%clk 01:31:06]} {[%emt 00:01:02]} 6. e3 {[%clk 01:30:52]} {[%emt
00:00:26]} a6 {[%clk 01:26:02]} {[%emt 00:05:34]} 7. cxd5 {[%clk 01:29:46]}
{[%emt 00:01:36]} exd5 {[%clk 01:21:22]} {[%emt 00:05:10]} 8. Bd3 {[%clk
01:29:03]} {[%emt 00:01:13]} Bg4 {[%clk 01:17:35]} {[%emt 00:04:16]} 9. h3
{[%clk 01:29:06]} {[%emt 00:00:27]} Bh5 {[%clk 01:15:30]} {[%emt 00:02:35]} 10.
Qb3 {[%clk 01:25:19]} {[%emt 00:04:18]} Nbd7 {[%clk 01:10:13]} {[%emt
00:05:47]} 11. g4 {[%clk 01:24:22]} {[%emt 00:01:27]} Bg6 {[%clk 01:08:25]}
{[%emt 00:02:17]} 12. Bxg6 {[%clk 01:24:43]} {[%emt 00:00:09]} fxg6 {[%clk
00:56:54]} {[%emt 00:12:01]} 13. Nxd5 {[%clk 01:25:02]} {[%emt 00:00:12]} Nxd5
{[%clk 00:57:00]} {[%emt 00:00:23]} 14. Qxd5+ {[%clk 01:24:50]} {[%emt
00:00:43]} Rf7 {[%clk 00:57:21]} {[%emt 00:00:09]} 15. Bxe7 {[%clk 01:24:46]}
{[%emt 00:00:34]} Qxe7 {[%clk 00:57:48]} {[%emt 00:00:03]} 16. Ng5 {[%clk
01:24:03]} {[%emt 00:01:13]} c6 {[%clk 00:47:35]} {[%emt 00:10:43]} 17. Qxf7+
{[%clk 01:24:26]} {[%emt 00:00:06]} Qxf7 {[%clk 00:48:03]} {[%emt 00:00:02]} 18.
Nxf7 {[%clk 01:24:47]} {[%emt 00:00:10]} Kxf7 {[%clk 00:48:29]} {[%emt
00:00:04]} 19. Ke2 {[%clk 01:24:59]} {[%emt 00:00:19]} Ke6 {[%clk 00:48:49]}
{[%emt 00:00:10]} 20. Rac1 {[%clk 01:24:36]} {[%emt 00:00:53]} Nb6 {[%clk
00:43:54]} {[%emt 00:05:25]} 21. e4 {[%clk 01:24:27]} {[%emt 00:00:39]} Rd8
{[%clk 00:43:02]} {[%emt 00:01:21]} 22. Ke3 {[%clk 01:24:42]} {[%emt 00:00:15]}
Kd6 {[%clk 00:41:30]} {[%emt 00:02:01]} 23. f4 {[%clk 01:24:51]} {[%emt
00:00:21]} Re8 {[%clk 00:40:49]} {[%emt 00:01:11]} 24. f5 {[%clk 01:23:58]}
{[%emt 00:01:24]} g5 {[%clk 00:38:58]} {[%emt 00:02:20]} 25. h4 {[%clk
01:23:44]} {[%emt 00:00:45]} gxh4 {[%clk 00:38:55]} {[%emt 00:00:33]} 26. Rxh4
{[%clk 01:24:08]} {[%emt 00:00:05]} h6 {[%clk 00:39:20]} {[%emt 00:00:05]} 27.
e5+ {[%clk 01:24:24]} {[%emt 00:00:14]} Kd7 {[%clk 00:39:12]} {[%emt 00:00:38]}
28. Kf3 {[%clk 01:23:48]} {[%emt 00:01:06]} Nd5 {[%clk 00:39:01]} {[%emt
00:00:40]} 29. g5 {[%clk 01:23:37]} {[%emt 00:00:41]} Ne7 {[%clk 00:37:24]}
{[%emt 00:02:07]} 30. Kg4 {[%clk 01:23:17]} {[%emt 00:00:51]} hxg5 {[%clk
00:35:36]} {[%emt 00:02:17]} 31. Kxg5 {[%clk 01:23:40]} {[%emt 00:00:07]} Rf8
{[%clk 00:35:47]} {[%emt 00:00:19]} 32. Rf1 {[%clk 01:23:36]} {[%emt 00:00:34]}
g6 {[%clk 00:33:45]} {[%emt 00:02:32]} 33. f6 {[%clk 01:23:41]} {[%emt
00:00:25]} Nf5 {[%clk 00:33:49]} {[%emt 00:00:26]} 34. Rh7+ {[%clk 01:23:47]}
{[%emt 00:00:25]} Ke6 {[%clk 00:34:06]} {[%emt 00:00:13]} 35. Rxf5 {[%clk
01:21:43]} {[%emt 00:02:34]} gxf5 {[%clk 00:34:21]} {[%emt 00:00:14]} 36. Re7+
{[%clk 01:22:08]} {[%emt 00:00:05]} Kd5 {[%clk 00:34:43]} {[%emt 00:00:09]} 37.
Kxf5 {[%clk 01:21:55]} {[%emt 00:00:44]} Kxd4 {[%clk 00:33:44]} {[%emt
00:01:28]} 38. Rd7+ {[%clk 01:22:13]} {[%emt 00:00:12]} Kc5 {[%clk 00:33:35]}
{[%emt 00:00:39]} 39. e6 {[%clk 01:22:35]} {[%emt 00:00:08]} Rh8 {[%clk
00:33:19]} {[%emt 00:00:46]} 40. e7 {[%clk 01:22:42]} {[%emt 00:00:24]} Kb6
{[%clk 00:33:18]} {[%emt 00:00:30]} 41. f7 {[%clk 01:22:39]} {[%emt 00:00:33]}
c5 {[%clk 00:33:18]} {[%emt 00:00:31]} 42. e8=Q {[%clk 01:22:47]} {[%emt
00:00:21]} 1-0

[Event "Mistrovství Čech mládeže 2023 - HD16"]
[Site "Harrachov, Czech Republic"]
[Date "2023.10.25"]
[Round "6.14"]
[White "Dudarec, Elias"]
[Black "Svoboda, Daniel"]
[Result "0-1"]
[TimeControl "90m + 30s"]
[WhiteElo "1535"]
[BlackElo "1766"]

1. e4 {[%clk 01:30:30]} {[%emt 00:07:59]} c5 {[%clk 01:30:30]} {[%emt
00:00:12]} 2. a3 {[%clk 01:30:30]} {[%emt 00:00:06]} g6 {[%clk 01:27:28]}
{[%emt 00:03:59]} 3. b4 {[%clk 01:27:47]} {[%emt 00:03:14]} Bg7 {[%clk
01:21:38]} {[%emt 00:06:20]} 4. Nc3 {[%clk 01:26:36]} {[%emt 00:01:41]} d6
{[%clk 01:11:00]} {[%emt 00:11:07]} 5. Rb1 {[%clk 01:14:52]} {[%emt 00:12:15]}
Nc6 {[%clk 01:01:42]} {[%emt 00:09:48]} 6. Nf3 {[%clk 01:10:57]} {[%emt
00:04:24]} Nf6 {[%emt 00:03:25]} 7. Be2 {[%clk 01:04:18]} {[%emt 00:07:07]} Nd4
{[%clk 00:51:29]} {[%emt 00:07:50]} 8. O-O {[%clk 00:59:01]} {[%emt 00:05:47]}
O-O {[%clk 00:49:36]} {[%emt 00:02:23]} 9. d3 {[%clk 00:55:27]} {[%emt
00:04:05]} Qc7 {[%clk 00:37:10]} {[%emt 00:12:55]} 10. Nxd4 {[%clk 00:44:29]}
{[%emt 00:11:28]} cxd4 {[%clk 00:36:19]} {[%emt 00:01:21]} 11. Nb5 {[%clk
00:43:19]} {[%emt 00:01:40]} Qb6 {[%clk 00:33:25]} {[%emt 00:03:25]} 12. a4
{[%emt 00:11:14]} Bd7 {[%clk 00:29:23]} {[%emt 00:04:31]} 13. c4 {[%clk
00:31:15]} {[%emt 00:01:52]} dxc3 {[%clk 00:23:01]} {[%emt 00:06:52]} 14. Nxc3
{[%clk 00:29:12]} {[%emt 00:02:33]} Rfc8 {[%clk 00:22:17]} {[%emt 00:01:13]} 15.
Be3 {[%clk 00:27:32]} {[%emt 00:02:10]} Qd8 {[%clk 00:21:24]} {[%emt 00:01:23]}
16. Rc1 {[%clk 00:23:14]} {[%emt 00:04:48]} Ne8 {[%clk 00:18:42]} {[%emt
00:03:12]} 17. d4 {[%clk 00:22:21]} {[%emt 00:01:23]} Be6 {[%clk 00:16:55]}
{[%emt 00:02:18]} 18. Qd2 {[%clk 00:18:45]} {[%emt 00:04:06]} Bc4 {[%clk
00:14:08]} {[%emt 00:03:17]} 19. Bxc4 {[%clk 00:16:17]} {[%emt 00:02:57]} Rxc4
{[%clk 00:14:27]} {[%emt 00:00:12]} 20. Nd5 {[%clk 00:16:41]} {[%emt 00:00:05]}
Rac8 {[%clk 00:13:13]} {[%emt 00:01:44]} 21. Rxc4 {[%clk 00:08:20]} {[%emt
00:08:51]} Rxc4 {[%clk 00:13:28]} {[%emt 00:00:16]} 22. Qd3 {[%clk 00:08:24]}
{[%emt 00:00:25]} Rc6 {[%clk 00:12:47]} {[%emt 00:01:10]} 23. b5 {[%clk
00:06:16]} {[%emt 00:02:39]} Rc8 {[%clk 00:12:55]} {[%emt 00:00:23]} 24. f4
{[%clk 00:05:45]} {[%emt 00:01:00]} e6 {[%clk 00:11:06]} {[%emt 00:02:19]} 25.
Nb4 {[%clk 00:06:01]} {[%emt 00:00:14]} Qa5 {[%clk 00:10:13]} {[%emt 00:01:23]}
26. Qb3 {[%clk 00:05:33]} {[%emt 00:00:58]} Nf6 {[%clk 00:08:59]} {[%emt
00:01:45]} 27. e5 {[%clk 00:04:36]} {[%emt 00:01:26]} Ng4 {[%clk 00:08:50]}
{[%emt 00:00:39]} 28. Bd2 {[%clk 00:04:13]} {[%emt 00:00:53]} Qb6 {[%clk
00:07:36]} {[%emt 00:01:44]} 29. Be3 {[%clk 00:01:59]} {[%emt 00:02:44]} dxe5
{[%clk 00:05:44]} {[%emt 00:02:22]} 30. fxe5 {[%clk 00:01:53]} {[%emt
00:00:36]} Bxe5 {[%clk 00:05:28]} {[%emt 00:00:46]} 31. Rd1 {[%clk 00:01:18]}
{[%emt 00:01:05]} Bxh2+ {[%clk 00:03:39]} {[%emt 00:02:19]} 32. Kh1 {[%clk
00:01:33]} {[%emt 00:00:14]} Qd8 {[%clk 00:03:18]} {[%emt 00:00:51]} 33. Bg1
{[%clk 00:00:52]} {[%emt 00:01:11]} Bd6 {[%clk 00:03:33]} {[%emt 00:00:15]} 34.
Na2 {[%clk 00:00:46]} {[%emt 00:00:36]} Qg5 {[%clk 00:02:50]} {[%emt 00:01:13]}
35. Rf1 {[%clk 00:00:47]} {[%emt 00:00:30]} Nh6 {[%clk 00:02:08]} {[%emt
00:01:11]} 36. Qf3 {[%clk 00:00:41]} {[%emt 00:00:35]} Nf5 {[%clk 00:01:56]}
{[%emt 00:00:43]} 37. Bf2 {[%clk 00:00:36]} {[%emt 00:00:36]} Rc2 {[%clk
00:01:27]} {[%emt 00:00:59]} 38. Nc3 {[%clk 00:00:37]} {[%emt 00:00:29]} Qh6+
{[%clk 00:01:30]} {[%emt 00:00:27]} 39. Qh3 {[%clk 00:00:56]} {[%emt 00:00:10]}
Qxh3+ {[%clk 00:01:46]} {[%emt 00:00:14]} 40. gxh3 {[%clk 00:01:19]} {[%emt
00:00:07]} Rxc3 {[%clk 00:02:14]} {[%emt 00:00:03]} 0-1

[Event "Mistrovství Čech mládeže 2023 - HD16"]
[Site "Harrachov, Czech Republic"]
[Date "2023.10.25"]
[Round "6.15"]
[White "Rubin, Andrej"]
[Black "Langmaier, Michal"]
[Result "0-1"]
[TimeControl "90m + 30s"]
[WhiteElo "1358"]
[BlackElo "1697"]

1. e4 {[%clk 01:30:59]} c5 {[%clk 01:30:56]} {[%emt 00:00:05]} 2. Nc3 {[%clk
01:31:25]} {[%emt 00:00:03]} a6 {[%clk 01:30:55]} {[%emt 00:00:30]} 3. f4
{[%clk 01:31:49]} {[%emt 00:00:06]} e6 {[%clk 01:28:07]} {[%emt 00:03:19]} 4.
Nf3 {[%clk 01:29:00]} {[%emt 00:03:20]} Nc6 {[%clk 01:28:31]} {[%emt 00:00:06]}
5. d3 {[%clk 01:22:12]} {[%emt 00:07:18]} Nge7 {[%clk 01:26:38]} {[%emt
00:02:22]} 6. Be3 {[%clk 01:21:47]} {[%emt 00:00:55]} b6 {[%clk 01:26:47]}
{[%emt 00:00:21]} 7. Qd2 {[%clk 01:18:59]} {[%emt 00:03:18]} Bb7 {[%clk
01:23:33]} {[%emt 00:03:44]} 8. g3 {[%clk 01:17:14]} {[%emt 00:02:15]} d5
{[%clk 01:21:18]} {[%emt 00:02:44]} 9. Bf2 {[%clk 01:16:54]} {[%emt 00:00:49]}
g6 {[%clk 01:17:05]} {[%emt 00:04:44]} 10. Bg2 {[%clk 01:13:34]} {[%emt
00:03:50]} Bg7 {[%clk 01:13:49]} {[%emt 00:03:47]} 11. e5 {[%clk 01:11:56]}
{[%emt 00:02:07]} O-O {[%clk 01:10:00]} {[%emt 00:04:18]} 12. h4 {[%clk
01:09:57]} {[%emt 00:02:31]} f6 {[%clk 01:01:26]} {[%emt 00:09:03]} 13. h5
{[%clk 00:59:55]} {[%emt 00:10:32]} fxe5 {[%clk 00:52:36]} {[%emt 00:09:21]} 14.
Ng5 {[%clk 00:58:31]} {[%emt 00:01:53]} Qd6 {[%clk 00:48:40]} {[%emt 00:04:26]}
15. hxg6 {[%clk 00:56:52]} {[%emt 00:02:10]} Nxg6 {[%clk 00:45:44]} {[%emt
00:03:26]} 16. Qe2 {[%clk 00:35:20]} {[%emt 00:22:01]} h6 {[%clk 00:38:25]}
{[%emt 00:07:49]} 17. Nxe6 {[%clk 00:30:13]} {[%emt 00:05:37]} Nd4 {[%clk
00:30:45]} {[%emt 00:08:11]} 18. Bxd4 {[%clk 00:23:49]} {[%emt 00:06:54]} Qxe6
{[%clk 00:30:49]} {[%emt 00:00:26]} 19. Bh3 {[%clk 00:22:21]} {[%emt 00:01:58]}
Qe7 {[%clk 00:30:07]} {[%emt 00:01:11]} 20. Bxe5 {[%clk 00:21:15]} {[%emt
00:01:37]} Nxe5 {[%clk 00:29:25]} {[%emt 00:01:11]} 21. fxe5 {[%clk 00:21:32]}
{[%emt 00:00:13]} Qxe5 {[%clk 00:25:22]} {[%emt 00:04:33]} 22. Be6+ {[%clk
00:19:35]} {[%emt 00:02:27]} Kh7 {[%clk 00:25:17]} {[%emt 00:00:35]} 23. Bxd5
{[%clk 00:18:09]} {[%emt 00:01:55]} Qxg3+ {[%clk 00:19:14]} {[%emt 00:06:34]}
24. Kd1 {[%clk 00:17:38]} {[%emt 00:01:01]} Rae8 {[%clk 00:18:42]} {[%emt
00:01:02]} 25. Be4+ {[%clk 00:16:38]} {[%emt 00:01:30]} Bxe4 {[%clk 00:18:30]}
{[%emt 00:00:42]} 26. Nxe4 {[%clk 00:16:50]} {[%emt 00:00:17]} Qf4 {[%clk
00:18:21]} {[%emt 00:00:39]} 27. Qd2 {[%clk 00:14:33]} {[%emt 00:02:47]} Qf3+
{[%clk 00:17:52]} {[%emt 00:00:59]} 0-1

[Event "Mistrovství Čech mládeže 2023 - HD16"]
[Site "Harrachov, Czech Republic"]
[Date "2023.10.25"]
[Round "6.16"]
[White "Mrázek, Adam"]
[Black "Kohm, Patrik"]
[Result "1/2-1/2"]
[TimeControl "90m + 30s"]
[WhiteElo "1669"]
[BlackElo "1475"]

1. c4 {[%clk 01:31:19]} {[%emt 00:00:14]} Nf6 {[%clk 01:31:14]} {[%emt
00:00:12]} 2. g3 {[%clk 01:31:37]} {[%emt 00:00:13]} g6 {[%clk 01:31:28]}
{[%emt 00:00:16]} 3. Bg2 {[%clk 01:32:01]} {[%emt 00:00:06]} Bg7 {[%clk
01:31:50]} {[%emt 00:00:08]} 4. Nc3 {[%clk 01:31:51]} {[%emt 00:00:40]} O-O
{[%emt 00:01:09]} 5. Nf3 {[%emt 00:01:04]} d6 {[%clk 01:28:21]} {[%emt
00:01:46]} 6. d4 {[%clk 01:30:20]} {[%emt 00:02:01]} a5 {[%clk 01:27:52]}
{[%emt 00:00:59]} 7. O-O {[%clk 01:30:34]} {[%emt 00:00:16]} Na6 {[%clk
01:27:59]} {[%emt 00:00:24]} 8. Re1 {[%clk 01:24:22]} {[%emt 00:06:42]} Nd7
{[%clk 01:26:14]} {[%emt 00:02:14]} 9. e4 {[%clk 01:15:41]} {[%emt 00:09:11]}
e5 {[%clk 01:26:24]} {[%emt 00:00:20]} 10. d5 {[%clk 01:12:54]} {[%emt
00:03:18]} f5 {[%clk 01:26:38]} {[%emt 00:00:15]} 11. Rb1 {[%clk 01:04:38]}
{[%emt 00:08:47]} f4 {[%clk 01:25:21]} {[%emt 00:01:47]} 12. a3 {[%clk
01:00:54]} {[%emt 00:04:15]} g5 {[%clk 01:24:25]} {[%emt 00:01:25]} 13. b4
{[%clk 00:54:08]} {[%emt 00:07:16]} g4 {[%clk 01:17:04]} {[%emt 00:07:51]} 14.
Nh4 {[%clk 00:52:53]} {[%emt 00:01:46]} Qg5 {[%clk 01:16:41]} {[%emt 00:00:53]}
15. Nf5 {[%clk 00:45:52]} {[%emt 00:07:31]} Nf6 {[%clk 01:13:25]} {[%emt
00:03:45]} 16. Nxg7 {[%clk 00:41:09]} {[%emt 00:05:14]} Kxg7 {[%clk 01:09:48]}
{[%emt 00:04:07]} 17. gxf4 {[%clk 00:41:30]} {[%emt 00:00:09]} exf4 {[%clk
01:08:36]} {[%emt 00:01:41]} 18. c5 {[%clk 00:41:18]} {[%emt 00:00:43]} Nh5
{[%clk 01:04:35]} {[%emt 00:04:31]} 19. Bb2 {[%clk 00:30:54]} {[%emt 00:10:54]}
Kg8 {[%clk 01:04:17]} {[%emt 00:00:47]} 20. cxd6 {[%clk 00:29:25]} {[%emt
00:02:00]} f3 {[%clk 00:55:39]} {[%emt 00:09:08]} 21. Qd4 {[%clk 00:09:13]}
{[%emt 00:20:42]} g3 {[%clk 00:24:19]} {[%emt 00:31:49]} 22. hxg3 {[%clk
00:01:21]} {[%emt 00:08:22]} Nxg3 {[%clk 00:24:17]} {[%emt 00:00:32]} 23. fxg3
{[%clk 00:01:30]} {[%emt 00:00:22]} f2+ {[%clk 00:24:37]} {[%emt 00:00:09]} 24.
Qxf2 {[%clk 00:01:48]} {[%emt 00:00:13]} Rxf2 {[%clk 00:24:59]} {[%emt
00:00:08]} 25. Kxf2 {[%clk 00:02:16]} {[%emt 00:00:01]} axb4 {[%clk 00:24:07]}
{[%emt 00:01:22]} 26. Na4 {[%clk 00:01:07]} {[%emt 00:01:40]} Bd7 {[%clk
00:24:00]} {[%emt 00:00:36]} 27. Bc1 {[%clk 00:00:57]} {[%emt 00:00:41]} Qf6+
{[%clk 00:24:12]} {[%emt 00:00:16]} 28. Bf4 {[%clk 00:01:10]} {[%emt 00:00:18]}
Bxa4 {[%clk 00:24:26]} {[%emt 00:00:16]} 29. e5 {[%clk 00:01:36]} {[%emt
00:00:04]} Qg7 {[%clk 00:23:37]} {[%emt 00:01:19]} 30. Be4 {[%clk 00:00:58]}
{[%emt 00:01:09]} cxd6 {[%clk 00:23:36]} {[%emt 00:00:31]} 31. Bf5 {[%clk
00:00:43]} {[%emt 00:00:45]} Bd7 {[%clk 00:22:28]} {[%emt 00:01:38]} 32. g4
{[%clk 00:00:31]} {[%emt 00:00:42]} Bxf5 {[%clk 00:22:27]} {[%emt 00:00:31]} 33.
gxf5 {[%clk 00:00:57]} {[%emt 00:00:04]} Qc7 {[%clk 00:21:06]} {[%emt
00:01:51]} 34. Rg1+ {[%clk 00:00:47]} {[%emt 00:00:40]} Kf7 {[%clk 00:21:22]}
{[%emt 00:00:13]} 35. Rbc1 {[%clk 00:00:34]} {[%emt 00:00:44]} Qb6+ {[%clk
00:21:32]} {[%emt 00:00:20]} 36. Be3 {[%clk 00:00:50]} {[%emt 00:00:14]} Nc5
{[%clk 00:21:10]} {[%emt 00:00:51]} 37. Bxc5 {[%clk 00:00:39]} {[%emt
00:00:41]} dxc5 {[%clk 00:21:25]} {[%emt 00:00:16]} 38. f6 {[%clk 00:00:32]}
{[%emt 00:00:36]} Rxa3 {[%clk 00:20:51]} {[%emt 00:01:04]} 39. Rg7+ {[%clk
00:00:34]} {[%emt 00:00:29]} Kf8 {[%clk 00:21:14]} {[%emt 00:00:07]} 40. e6
{[%clk 00:00:38]} {[%emt 00:00:26]} c4+ {[%clk 00:21:37]} {[%emt 00:00:07]} 41.
Kg2 {[%clk 00:00:41]} {[%emt 00:00:26]} Ra2+ {[%clk 00:21:50]} {[%emt
00:00:17]} 42. Kh1 {[%clk 00:01:02]} {[%emt 00:00:10]} Re2 {[%clk 00:20:54]}
{[%emt 00:01:26]} 43. Rf7+ {[%clk 00:00:39]} {[%emt 00:00:52]} Ke8 {[%clk
00:19:38]} {[%emt 00:01:47]} 44. Re7+ {[%clk 00:00:48]} {[%emt 00:00:21]} Kd8
{[%clk 00:19:56]} {[%emt 00:00:11]} 45. Rd7+ {[%clk 00:00:41]} {[%emt
00:00:37]} Kc8 {[%clk 00:20:18]} {[%emt 00:00:07]} 46. Ra1 {[%clk 00:00:33]}
{[%emt 00:00:39]} Rh2+ {[%clk 00:19:52]} {[%emt 00:00:56]} 47. Kxh2 {[%clk
00:00:58]} {[%emt 00:00:05]} Qf2+ {[%clk 00:20:13]} {[%emt 00:00:08]} 1/2-1/2

[Event "Mistrovství Čech mládeže 2023 - HD16"]
[Site "Harrachov, Czech Republic"]
[Date "2023.10.25"]
[Round "6.17"]
[White "Lána, Vincent"]
[Black "Vlček, Vojtěch"]
[Result "0-1"]
[TimeControl "90m + 30s"]
[WhiteElo "1342"]
[BlackElo "1661"]

1. g4 {[%clk 01:30:58]} d5 {[%clk 01:28:59]} {[%emt 00:02:01]} 2. Bg2 {[%clk
01:31:19]} {[%emt 00:00:09]} c6 {[%clk 01:23:46]} {[%emt 00:05:44]} 3. e3
{[%clk 01:30:00]} {[%emt 00:01:48]} g6 {[%clk 01:23:40]} {[%emt 00:00:36]} 4.
d4 {[%clk 01:25:28]} {[%emt 00:05:03]} Bg7 {[%clk 01:22:23]} {[%emt 00:01:47]}
5. Nd2 {[%clk 01:24:10]} {[%emt 00:01:47]} e5 {[%clk 01:19:18]} {[%emt
00:03:35]} 6. dxe5 {[%clk 01:22:57]} {[%emt 00:01:44]} Bxe5 {[%clk 01:19:35]}
{[%emt 00:00:13]} 7. h3 {[%clk 01:22:30]} {[%emt 00:00:56]} Ne7 {[%clk
01:16:16]} {[%emt 00:03:49]} 8. f4 {[%clk 01:21:47]} {[%emt 00:01:13]} Bg7
{[%clk 01:16:28]} {[%emt 00:00:18]} 9. Nb3 {[%clk 01:17:40]} {[%emt 00:04:38]}
b6 {[%clk 01:06:53]} {[%emt 00:10:05]} 10. c3 {[%clk 01:13:37]} {[%emt
00:04:33]} Qc7 {[%clk 00:59:50]} {[%emt 00:07:32]} 11. Qf3 {[%clk 01:12:08]}
{[%emt 00:02:00]} Nd7 {[%clk 00:56:15]} {[%emt 00:04:05]} 12. Ne2 {[%clk
01:10:04]} {[%emt 00:02:34]} Nf6 {[%clk 00:50:31]} {[%emt 00:06:14]} 13. Ng3
{[%clk 01:07:45]} {[%emt 00:02:49]} Bb7 {[%clk 00:48:36]} {[%emt 00:02:24]} 14.
Bd2 {[%clk 01:06:52]} {[%emt 00:01:22]} O-O-O {[%clk 00:48:07]} {[%emt
00:01:00]} 15. O-O-O {[%clk 01:06:17]} {[%emt 00:01:06]} Rhe8 {[%clk 00:43:27]}
{[%emt 00:05:10]} 16. Rhe1 {[%clk 01:05:31]} {[%emt 00:01:15]} c5 {[%clk
00:41:12]} {[%emt 00:02:46]} 17. Kb1 {[%clk 00:56:43]} {[%emt 00:09:17]} Nc6
{[%clk 00:29:00]} {[%emt 00:12:42]} 18. Qf2 {[%clk 00:53:19]} {[%emt 00:03:53]}
Ne4 {[%clk 00:26:16]} {[%emt 00:03:16]} 19. Bxe4 {[%clk 00:50:56]} {[%emt
00:02:51]} dxe4 {[%clk 00:26:08]} {[%emt 00:00:40]} 20. Bc1 {[%clk 00:51:02]}
{[%emt 00:00:24]} Ba6 {[%clk 00:21:21]} {[%emt 00:05:17]} 21. Nd2 {[%clk
00:46:06]} {[%emt 00:05:25]} Bd3+ {[%clk 00:20:41]} {[%emt 00:01:11]} 22. Ka1
{[%clk 00:46:28]} {[%emt 00:00:07]} Bc2 {[%clk 00:21:04]} {[%emt 00:00:07]} 23.
Qg2 {[%clk 00:44:47]} {[%emt 00:02:12]} Bxd1 {[%clk 00:18:03]} {[%emt
00:03:30]} 24. Rxd1 {[%clk 00:45:12]} {[%emt 00:00:05]} Kb8 {[%clk 00:17:01]}
{[%emt 00:01:32]} 25. Ngxe4 {[%clk 00:44:48]} {[%emt 00:00:55]} Rd7 {[%clk
00:15:17]} {[%emt 00:02:14]} 26. Re1 {[%clk 00:43:50]} {[%emt 00:01:28]} Rde7
{[%clk 00:14:43]} {[%emt 00:01:03]} 27. Qf3 {[%clk 00:42:12]} {[%emt 00:02:08]}
Na5 {[%clk 00:12:04]} {[%emt 00:03:09]} 28. Nf2 {[%clk 00:40:39]} {[%emt
00:02:02]} b5 {[%clk 00:11:19]} {[%emt 00:01:16]} 29. Qe2 {[%clk 00:37:59]}
{[%emt 00:03:10]} Qb6 {[%clk 00:10:48]} {[%emt 00:01:00]} 30. Nb3 {[%clk
00:37:14]} {[%emt 00:01:16]} Nxb3+ {[%clk 00:02:29]} {[%emt 00:08:50]} 31. axb3
{[%clk 00:37:38]} {[%emt 00:00:06]} f5 {[%clk 00:02:49]} {[%emt 00:00:10]} 32.
gxf5 {[%clk 00:37:33]} {[%emt 00:00:34]} gxf5 {[%clk 00:03:16]} {[%emt
00:00:04]} 33. Qc2 {[%clk 00:36:55]} {[%emt 00:01:07]} Qg6 {[%clk 00:02:16]}
{[%emt 00:01:14]} 34. Qd3 {[%clk 00:37:00]} {[%emt 00:00:40]} a6 {[%clk
00:02:20]} {[%emt 00:00:27]} 35. Rd1 {[%clk 00:36:24]} {[%emt 00:01:06]} Qc6
{[%clk 00:02:12]} {[%emt 00:00:38]} 36. Qxf5 {[%clk 00:34:56]} {[%emt
00:01:58]} Kb7 {[%clk 00:00:42]} {[%emt 00:02:01]} 37. Qxh7 {[%clk 00:34:26]}
{[%emt 00:01:00]} Bd4 {[%clk 00:00:45]} {[%emt 00:00:24]} 38. Qh4 {[%clk
00:33:14]} {[%emt 00:01:43]} Bxe3 {[%clk 00:00:49]} {[%emt 00:00:27]} 39. Re1
{[%clk 00:32:28]} {[%emt 00:01:16]} Qd7 {[%clk 00:00:44]} {[%emt 00:00:36]} 40.
Bxe3 {[%clk 00:31:49]} {[%emt 00:01:08]} Rxe3 {[%clk 00:01:11]} {[%emt
00:00:04]} 41. Rxe3 {[%clk 00:32:03]} {[%emt 00:00:15]} Rxe3 {[%clk 00:01:38]}
{[%emt 00:00:04]} 42. f5 {[%clk 00:32:11]} {[%emt 00:00:22]} Re1+ {[%clk
00:01:54]} {[%emt 00:00:14]} 43. Ka2 {[%clk 00:32:34]} {[%emt 00:00:07]} Qc7
{[%clk 00:02:23]} 44. b4 {[%clk 00:31:55]} {[%emt 00:01:09]} Qf7+ {[%clk
00:02:15]} {[%emt 00:00:37]} 45. b3 {[%clk 00:32:12]} {[%emt 00:00:14]} Qxf5
{[%clk 00:01:04]} {[%emt 00:01:40]} 46. bxc5 {[%clk 00:31:16]} {[%emt
00:01:26]} Re2+ {[%clk 00:01:20]} {[%emt 00:00:15]} 47. Ka3 {[%clk 00:31:21]}
{[%emt 00:00:24]} Qxc5+ {[%clk 00:01:32]} {[%emt 00:00:18]} 0-1

[Event "Mistrovství Čech mládeže 2023 - HD16"]
[Site "Harrachov, Czech Republic"]
[Date "2023.10.25"]
[Round "6.18"]
[White "Janoušková, Adéla"]
[Black "Maršík, Ondřej"]
[Result "1/2-1/2"]
[TimeControl "90m + 30s"]
[WhiteElo "1638"]
[BlackElo "1459"]

1. e4 {[%clk 01:30:54]} {[%emt 00:00:05]} d6 {[%clk 01:30:40]} {[%emt
00:00:20]} 2. d4 {[%clk 01:30:46]} {[%emt 00:00:37]} Nf6 {[%clk 01:31:04]}
{[%emt 00:00:06]} 3. Nc3 {[%clk 01:31:09]} {[%emt 00:00:07]} g6 {[%clk
01:31:29]} {[%emt 00:00:05]} 4. Nf3 {[%clk 01:30:56]} {[%emt 00:00:43]} Bg7
{[%clk 01:31:53]} {[%emt 00:00:07]} 5. h3 {[%clk 01:30:24]} {[%emt 00:01:02]}
O-O {[%clk 01:31:45]} {[%emt 00:00:38]} 6. Be2 {[%clk 01:30:25]} {[%emt
00:00:28]} e5 {[%clk 01:28:15]} {[%emt 00:04:00]} 7. dxe5 {[%clk 01:29:53]}
{[%emt 00:01:02]} dxe5 {[%clk 01:28:30]} {[%emt 00:00:16]} 8. Qxd8 {[%clk
01:24:37]} {[%emt 00:05:45]} Rxd8 {[%clk 01:28:50]} {[%emt 00:00:11]} 9. O-O
{[%clk 01:24:51]} {[%emt 00:00:16]} Nc6 {[%clk 01:26:11]} {[%emt 00:03:09]} 10.
Bg5 {[%clk 01:18:19]} {[%emt 00:07:02]} Be6 {[%clk 01:24:29]} {[%emt 00:02:12]}
11. Rfd1 {[%clk 01:12:03]} {[%emt 00:06:46]} Rxd1+ {[%clk 01:15:36]} {[%emt
00:09:23]} 12. Rxd1 {[%clk 01:11:33]} {[%emt 00:00:59]} Nb4 {[%clk 00:57:52]}
{[%emt 00:18:15]} 13. Bd3 {[%clk 01:01:58]} {[%emt 00:10:04]} c6 {[%clk
00:49:25]} {[%emt 00:08:57]} 14. a3 {[%clk 01:00:28]} {[%emt 00:02:01]} Nxd3
{[%clk 00:47:47]} {[%emt 00:02:07]} 15. Rxd3 {[%clk 01:00:50]} {[%emt
00:00:09]} Re8 {[%clk 00:37:09]} {[%emt 00:11:08]} 1/2-1/2